[Event "IRI-ch Men Final 2015"]
[Site "Tehran"]
[Date "2016.01.26"]
[Round "9"]
[White "Maghsoodloo, Parham"]
[Black "Bagheri, Maziar"]
[Result "0-1"]
[ECO "A06"]
[WhiteElo "2450"]
[BlackElo "2262"]
[PlyCount "108"]
[EventDate "2016.??.??"]
[EventCountry "IRI"]
[TimeControl "40/5400+30:1800+30"]

1. Nf3 {[%emt 0:00:47]} d5 {[%emt 0:00:56]} 2. g3 {[%emt 0:00:23]} c6 {[%emt 0:
00:45]} 3. Bg2 {[%emt 0:00:26]} Nd7 {[%emt 0:00:52]} 4. d4 {[%emt 0:01:19]} e6
{[%emt 0:00:08]} 5. O-O {[%emt 0:00:04]} Bd6 {[%emt 0:00:07]} 6. b3 {[%emt 0:
00:01]} Qe7 {[%emt 0:00:09]} 7. Bb2 {[%emt 0:00:26]} f5 {[%emt 0:00:26]} 8. c4
{[%emt 0:00:32]} Ngf6 {[%emt 0:00:08]} 9. Qc2 {[%emt 0:00:05]} Ne4 {[%emt 0:00:
26]} 10. Nbd2 {[%emt 0:01:29]} O-O {[%emt 0:00:18]} 11. a3 {[%emt 0:04:04]} Qf7
{[%emt 0:05:06]} 12. Ne5 {[%emt 0:05:20]} Qh5 {[%emt 0:03:08]} 13. Nxe4 {
[%emt 0:07:38]} fxe4 {[%emt 0:00:49]} 14. f4 {[%emt 0:03:25]} Be7 {[%emt 0:12:
39]} 15. e3 {[%emt 0:01:28]} Nxe5 {[%emt 0:02:42]} 16. dxe5 {[%emt 0:00:12]}
Bd7 {[%emt 0:01:07]} 17. c5 {[%emt 0:00:40]} Qg6 {[%emt 0:02:10]} 18. Rf2 {
[%emt 0:02:21]} h5 {[%emt 0:05:48]} 19. Bf1 {[%emt 0:01:06]} b6 {[%emt 0:19:37]
} 20. Bd4 {[%emt 0:00:02]} Rfb8 {[%emt 0:00:38]} 21. Rb1 {[%emt 0:00:03]} b5 {
[%emt 0:03:03]} 22. Be2 {[%emt 0:00:23]} a5 {[%emt 0:01:24]} 23. Qd1 {[%emt 0:
01:36]} Be8 {[%emt 0:00:24]} 24. Rg2 {[%emt 0:00:35]} b4 {[%emt 0:03:10]} 25.
a4 {[%emt 0:00:06]} Rb7 {[%emt 0:04:54]} 26. h3 {[%emt 0:04:04]} Qh7 {[%emt 0:
04:50]} 27. g4 {[%emt 0:00:23]} Bg6 {[%emt 0:00:33]} 28. Qe1 {[%emt 0:01:46]}
Rf8 {[%emt 0:02:54]} 29. Qg3 {[%emt 0:00:48]} hxg4 {[%emt 0:02:01]} 30. hxg4 {
[%emt 0:00:02]} Bh4 {[%emt 0:00:28]} 31. Qh3 {[%emt 0:00:01]} Bf2+ {[%emt 0:00:
27]} 32. Kh2 {[%emt 0:00:09]} Rxf4 {[%emt 0:01:37]} 33. Qxh7+ {[%emt 0:05:01]}
Bxh7 {[%emt 0:04:01]} 34. Rf1 {[%emt 0:00:16]} Rbf7 {[%emt 0:00:15]} 35. exf4 {
[%emt 0:00:02]} Bxd4 {[%emt 0:00:11]} 36. Ba6 {[%emt 0:00:11]} Rxf4 {[%emt 0:
01:00]} 37. Rxf4 {[%emt 0:19:18]} Bxe5 {[%emt 0:00:18]} 38. Kh3 {[%emt 0:00:04]
} Bxf4 {[%emt 0:00:11]} 39. Bb5 {[%emt 0:00:06]} Kf7 {[%emt 0:04:57]} 40. Bxc6
{[%emt 0:01:00]} Ke7 {[%emt 0:00:07]} 41. Re2 {[%emt 0:36:23]} e3 {[%emt 0:30:
38]} 42. Kg2 {[%emt 0:02:32]} Be4+ {[%emt 0:00:26]} 43. Kf1 {[%emt 0:00:06]} e5
{[%emt 0:03:18]} 44. Ba8 {[%emt 0:02:49]} Ke6 {[%emt 0:00:20]} 45. Bb7 {
[%emt 0:00:17]} Bd3 {[%emt 0:01:28]} 46. Bc8+ {[%emt 0:02:21]} Ke7 {[%emt 0:00:
35]} 47. Bb7 {[%emt 0:00:02]} d4 {[%emt 0:00:42]} 48. Ke1 {[%emt 0:00:52]} Kd8
{[%emt 0:00:51]} 49. Rg2 {[%emt 0:05:29]} Kc7 {[%emt 0:00:21]} 50. Bd5 {
[%emt 0:00:49]} Ba6 {[%emt 0:00:31]} 51. Rc2 {[%emt 0:13:47]} d3 {[%emt 0:00:
24]} 52. Rc4 {[%emt 0:00:07]} e2 {[%emt 0:00:16]} 53. Rxf4 {[%emt 0:00:28]}
exf4 {[%emt 0:00:11]} 54. Be4 {[%emt 0:02:42]} g5 {[%emt 0:00:09]} 0-1

[Event "IRI-ch Men Final 2015"]
[Site "Tehran"]
[Date "2016.01.27"]
[Round "10"]
[White "Javanbakht, Nima"]
[Black "Darini, Pouria"]
[Result "1/2-1/2"]
[ECO "A04"]
[WhiteElo "2422"]
[BlackElo "2474"]
[PlyCount "48"]
[EventDate "2016.??.??"]
[EventType "tourn"]
[EventRounds "11"]
[EventCountry "IRI"]
[TimeControl "40/5400+30:1800+30"]

1. Nf3 {[%emt 0:00:00]} c5 {[%emt 0:02:45]} 2. e3 {[%emt 0:00:00]} Nf6 {
[%emt 0:05:00]} 3. d4 {[%emt 0:00:00]} e6 {[%emt 0:06:45]} 4. c4 {[%emt 0:04:
08]} d5 {[%emt 0:00:08]} 5. Nc3 {[%emt 0:00:05]} Nc6 {[%emt 0:00:05]} 6. a3 {
[%emt 0:01:01]} a6 {[%emt 0:00:37]} 7. dxc5 {[%emt 0:04:42]} Bxc5 {[%emt 0:00:
03]} 8. b4 {[%emt 0:00:06]} Ba7 {[%emt 0:00:24]} 9. Bb2 {[%emt 0:03:39]} O-O {
[%emt 0:00:44]} 10. Be2 {[%emt 0:02:19]} dxc4 {[%emt 0:05:12]} 11. Qxd8 {
[%emt 0:03:51]} Rxd8 {[%emt 0:00:21]} 12. Bxc4 {[%emt 0:00:04]} b5 {[%emt 0:00:
36]} 13. Bb3 {[%emt 0:00:36]} Bb7 {[%emt 0:02:48]} 14. O-O {[%emt 0:12:55]} Bb6
{[%emt 0:14:50]} 15. Rfd1 {[%emt 0:01:38]} Rac8 {[%emt 0:04:49]} 16. Rxd8+ {
[%emt 0:03:18]} Rxd8 {[%emt 0:00:51]} 17. Kf1 {[%emt 0:17:07]} a5 {[%emt 0:13:
44]} 18. Nxb5 {[%emt 0:05:21]} axb4 {[%emt 0:01:30]} 19. Nbd4 {[%emt 0:07:58]}
Nxd4 {[%emt 0:08:04]} 20. Bxd4 {[%emt 0:06:41]} Bxd4 {[%emt 0:01:16]} 21. Nxd4
{[%emt 0:00:07]} Ra8 {[%emt 0:27:57]} 22. a4 {[%emt 0:00:25]} e5 {[%emt 0:00:
28]} 23. Nf3 {[%emt 0:01:50]} Ne4 {[%emt 0:01:25]} 24. Rc1 {[%emt 0:00:29]} Rc8
{[%emt 0:00:38]} 1/2-1/2

[Event "IRI-ch Men Final 2015"]
[Site "Tehran"]
[Date "2016.01.27"]
[Round "10"]
[White "Khamisi, S Jafar"]
[Black "Noroozi, Omid"]
[Result "0-1"]
[ECO "B90"]
[WhiteElo "2279"]
[BlackElo "2399"]
[PlyCount "98"]
[EventDate "2016.??.??"]
[EventType "tourn"]
[EventRounds "11"]
[EventCountry "IRI"]
[TimeControl "40/5400+30:1800+30"]

1. e4 {[%emt 0:01:46]} c5 {[%emt 0:04:35]} 2. Nf3 {[%emt 0:00:22]} d6 {[%emt 0:
00:31]} 3. d4 {[%emt 0:00:49]} cxd4 {[%emt 0:00:05]} 4. Nxd4 {[%emt 0:00:05]}
Nf6 {[%emt 0:00:04]} 5. Nc3 {[%emt 0:00:06]} a6 {[%emt 0:00:03]} 6. h3 {
[%emt 0:00:12]} e5 {[%emt 0:00:05]} 7. Nb3 {[%emt 0:01:07]} b5 {[%emt 0:04:19]}
8. Bg5 {[%emt 0:02:22]} Nbd7 {[%emt 0:00:53]} 9. a4 {[%emt 0:09:29]} b4 {
[%emt 0:20:15]} 10. Nd5 {[%emt 0:00:42]} Bb7 {[%emt 0:05:46]} 11. g3 {[%emt 0:
36:30]} Be7 {[%emt 0:11:08]} 12. Nxe7 {[%emt 0:11:25]} Qxe7 {[%emt 0:12:57]}
13. Bg2 {[%emt 0:00:54]} h6 {[%emt 0:01:33]} 14. Bxf6 {[%emt 0:04:43]} Nxf6 {
[%emt 0:00:11]} 15. Qd3 {[%emt 0:00:51]} d5 {[%emt 0:10:55]} 16. exd5 {[%emt 0:
01:58]} e4 {[%emt 0:00:10]} 17. Qe3 {[%emt 0:09:54]} Bxd5 {[%emt 0:04:11]} 18.
O-O {[%emt 0:00:53]} O-O {[%emt 0:00:11]} 19. Rfd1 {[%emt 0:00:47]} Rac8 {
[%emt 0:00:57]} 20. Rd2 {[%emt 0:01:32]} Rfe8 {[%emt 0:00:32]} 21. Rad1 {
[%emt 0:02:13]} Bc6 {[%emt 0:01:38]} 22. Nd4 {[%emt 0:02:39]} Bd7 {[%emt 0:01:
50]} 23. a5 {[%emt 0:05:11]} Qe5 {[%emt 0:00:19]} 24. Ra1 {[%emt 0:03:46]} Nd5
{[%emt 0:01:44]} 25. Qe1 {[%emt 0:00:24]} f5 {[%emt 0:03:52]} 26. Rad1 {
[%emt 0:00:48]} Nf6 {[%emt 0:00:21]} 27. Bf1 {[%emt 0:00:53]} Rc7 {[%emt 0:03:
02]} 28. Bxa6 {[%emt 0:00:33]} f4 {[%emt 0:01:54]} 29. gxf4 {[%emt 0:00:31]}
Qxa5 {[%emt 0:06:17]} 30. Bf1 {[%emt 0:00:21]} Qh5 {[%emt 0:00:06]} 31. Qe3 {
[%emt 0:00:44]} Nd5 {[%emt 0:00:26]} 32. Qg3 {[%emt 0:00:31]} e3 {[%emt 0:00:
08]} 33. Re2 {[%emt 0:00:15]} exf2+ {[%emt 0:00:48]} 34. Kxf2 {[%emt 0:00:37]}
Rf8 {[%emt 0:01:27]} 35. Ke1 {[%emt 0:00:53]} Nxf4 {[%emt 0:00:23]} 36. Re7 {
[%emt 0:00:16]} Rf7 {[%emt 0:03:26]} 37. Rxf7 {[%emt 0:00:45]} Qxf7 {[%emt 0:
00:01]} 38. Rd2 {[%emt 0:00:15]} Ra7 {[%emt 0:00:27]} 39. Rf2 {[%emt 0:00:37]}
g5 {[%emt 0:01:21]} 40. h4 {[%emt 0:00:46]} Qg7 {[%emt 0:00:00]} 41. Qb3+ {
[%emt 0:02:04]} Kh8 {[%emt 0:05:48]} 42. Qxb4 {[%emt 0:04:16]} Ra8 {[%emt 0:01:
37]} 43. hxg5 {[%emt 0:15:40]} Nd5 {[%emt 0:05:07]} 44. Qc5 {[%emt 0:09:10]}
Ra1+ {[%emt 0:07:20]} 45. Kd2 {[%emt 0:00:19]} Qxg5+ {[%emt 0:00:16]} 46. Kd3 {
[%emt 0:00:09]} Qe3+ {[%emt 0:00:52]} 47. Kc4 {[%emt 0:01:16]} Qxf2 {[%emt 0:
00:08]} 48. Bd3 {[%emt 0:00:34]} Ne3+ {[%emt 0:00:32]} 49. Kb3 {[%emt 0:00:30]}
Ba4+ {[%emt 0:01:06]} 0-1

[Event "IRI-ch Men Final 2015"]
[Site "Tehran"]
[Date "2016.01.27"]
[Round "10"]
[White "Lorparizangeneh, Shahin"]
[Black "Gholami, Aryan"]
[Result "1/2-1/2"]
[ECO "A38"]
[WhiteElo "2442"]
[BlackElo "2398"]
[PlyCount "91"]
[EventDate "2016.??.??"]
[EventType "tourn"]
[EventRounds "11"]
[EventCountry "IRI"]
[TimeControl "40/5400+30:1800+30"]

1. c4 {[%emt 0:00:00]} Nf6 {[%emt 0:00:00]} 2. Nc3 {[%emt 0:00:00]} c5 {
[%emt 0:01:38]} 3. g3 {[%emt 0:02:44]} Nc6 {[%emt 0:02:06]} 4. Nf3 {[%emt 0:00:
39]} g6 {[%emt 0:00:58]} 5. Bg2 {[%emt 0:00:15]} Bg7 {[%emt 0:00:02]} 6. d4 {
[%emt 0:01:09]} cxd4 {[%emt 0:01:40]} 7. Nxd4 {[%emt 0:00:05]} O-O {[%emt 0:00:
10]} 8. O-O {[%emt 0:00:05]} Qa5 {[%emt 0:00:50]} 9. Nb3 {[%emt 0:04:41]} Qh5 {
[%emt 0:02:25]} 10. c5 {[%emt 0:00:07]} d6 {[%emt 0:09:01]} 11. cxd6 {[%emt 0:
02:48]} Rd8 {[%emt 0:01:04]} 12. e4 {[%emt 0:00:29]} Rxd6 {[%emt 0:17:19]} 13.
Qxh5 {[%emt 0:04:29]} Nxh5 {[%emt 0:00:17]} 14. Be3 {[%emt 0:18:34]} Bxc3 {
[%emt 0:17:06]} 15. bxc3 {[%emt 0:00:11]} e5 {[%emt 0:01:58]} 16. c4 {[%emt 0:
10:36]} Ng7 {[%emt 0:06:31]} 17. a4 {[%emt 0:09:49]} Ne6 {[%emt 0:07:09]} 18.
a5 {[%emt 0:01:01]} Ncd4 {[%emt 0:02:26]} 19. Nxd4 {[%emt 0:07:34]} Nxd4 {
[%emt 0:00:34]} 20. c5 {[%emt 0:01:55]} Rd8 {[%emt 0:03:15]} 21. Bg5 {[%emt 0:
02:16]} Re8 {[%emt 0:01:20]} 22. Rfb1 {[%emt 0:02:18]} a6 {[%emt 0:02:05]} 23.
Rb6 {[%emt 0:01:46]} Ra7 {[%emt 0:05:37]} 24. h4 {[%emt 0:06:08]} Bd7 {[%emt 0:
02:24]} 25. Bf6 {[%emt 0:09:32]} Bc6 {[%emt 0:01:14]} 26. f4 {[%emt 0:00:22]}
Nc2 {[%emt 0:01:47]} 27. Rc1 {[%emt 0:02:52]} Ne3 {[%emt 0:00:23]} 28. Bf3 {
[%emt 0:00:31]} exf4 {[%emt 0:02:44]} 29. gxf4 {[%emt 0:00:07]} h5 {[%emt 0:00:
39]} 30. Kf2 {[%emt 0:01:57]} Ng4+ {[%emt 0:00:35]} 31. Bxg4 {[%emt 0:00:06]}
hxg4 {[%emt 0:00:04]} 32. e5 {[%emt 0:00:06]} Raa8 {[%emt 0:02:39]} 33. Kg3 {
[%emt 0:03:36]} Bf3 {[%emt 0:00:52]} 34. Rd6 {[%emt 0:00:55]} Rac8 {[%emt 0:00:
42]} 35. Rd7 {[%emt 0:00:32]} Rc6 {[%emt 0:01:03]} 36. Rc2 {[%emt 0:01:42]} Be4
{[%emt 0:03:44]} 37. Rc3 {[%emt 0:00:20]} Rcc8 {[%emt 0:00:16]} 38. Rd4 {
[%emt 0:00:29]} Bf5 {[%emt 0:02:13]} 39. Rc1 {[%emt 0:04:59]} Kh7 {[%emt 0:00:
38]} 40. Rd2 {[%emt 0:01:04]} Rc6 {[%emt 0:00:38]} 41. Rc3 {[%emt 0:03:31]} Kh6
{[%emt 0:08:12]} 42. Bd8 {[%emt 0:03:35]} Kh5 {[%emt 0:02:32]} 43. Bg5 {
[%emt 0:01:13]} Rc7 {[%emt 0:02:03]} 44. Bd8 {[%emt 0:02:29]} Rc6 {[%emt 0:01:
10]} 45. Bg5 {[%emt 0:03:25]} Rc7 {[%emt 0:00:06]} 46. Bd8 1/2-1/2

[Event "IRI-ch Men Final 2015"]
[Site "Tehran"]
[Date "2016.01.27"]
[Round "10"]
[White "Mosadeghpour, Masoud"]
[Black "Bagheri, Maziar"]
[Result "1-0"]
[ECO "A06"]
[WhiteElo "2475"]
[BlackElo "2262"]
[PlyCount "83"]
[EventDate "2016.??.??"]
[EventType "tourn"]
[EventRounds "11"]
[EventCountry "IRI"]
[TimeControl "40/5400+30:1800+30"]

1. Nf3 {[%emt 0:01:16]} d5 {[%emt 0:00:09]} 2. g3 {[%emt 0:00:16]} c6 {[%emt 0:
00:06]} 3. Bg2 {[%emt 0:00:06]} Nf6 {[%emt 0:01:17]} 4. O-O {[%emt 0:00:32]}
Nbd7 {[%emt 0:01:16]} 5. c4 {[%emt 0:02:50]} dxc4 {[%emt 0:00:33]} 6. Qc2 {
[%emt 0:02:21]} e5 {[%emt 0:02:41]} 7. Qxc4 {[%emt 0:01:02]} Bd6 {[%emt 0:00:
06]} 8. d3 {[%emt 0:01:34]} O-O {[%emt 0:00:13]} 9. Qc2 {[%emt 0:03:06]} h6 {
[%emt 0:01:48]} 10. Nc3 {[%emt 0:02:43]} Qe7 {[%emt 0:00:08]} 11. d4 {[%emt 0:
02:28]} Re8 {[%emt 0:05:45]} 12. e4 {[%emt 0:02:58]} Bb4 {[%emt 0:06:51]} 13.
Bd2 {[%emt 0:03:13]} exd4 {[%emt 0:04:59]} 14. Nxd4 {[%emt 0:00:04]} Ne5 {
[%emt 0:00:13]} 15. Rad1 {[%emt 0:11:05]} Rd8 {[%emt 0:16:22]} 16. Be3 {
[%emt 0:08:30]} Nc4 {[%emt 0:15:01]} 17. Bc1 {[%emt 0:00:17]} Bg4 {[%emt 0:00:
11]} 18. f3 {[%emt 0:00:23]} Bc5 {[%emt 0:15:06]} 19. Nce2 {[%emt 0:01:08]} Be6
{[%emt 0:00:16]} 20. Kh1 {[%emt 0:01:10]} g5 {[%emt 0:09:41]} 21. Nxe6 {
[%emt 0:08:29]} Qxe6 {[%emt 0:00:01]} 22. Qc3 {[%emt 0:01:39]} Bb6 {[%emt 0:03:
13]} 23. b3 {[%emt 0:01:22]} Nd6 {[%emt 0:02:26]} 24. Bb2 {[%emt 0:02:18]} Nde8
{[%emt 0:00:01]} 25. h4 {[%emt 0:05:57]} Rxd1 {[%emt 0:02:09]} 26. Rxd1 {
[%emt 0:00:20]} Rd8 {[%emt 0:00:05]} 27. Rxd8 {[%emt 0:06:40]} Bxd8 {[%emt 0:
00:01]} 28. Nd4 {[%emt 0:00:56]} Qe5 {[%emt 0:02:09]} 29. Qd2 {[%emt 0:03:50]}
Ba5 {[%emt 0:02:49]} 30. b4 {[%emt 0:01:00]} c5 {[%emt 0:04:33]} 31. Ne2 {
[%emt 0:03:47]} Bxb4 {[%emt 0:00:31]} 32. Qxb4 {[%emt 0:01:10]} cxb4 {[%emt 0:
00:32]} 33. Bxe5 {[%emt 0:00:07]} Nd7 {[%emt 0:00:21]} 34. Bd4 {[%emt 0:00:38]}
a5 {[%emt 0:00:02]} 35. hxg5 {[%emt 0:05:33]} hxg5 {[%emt 0:00:01]} 36. Bh3 {
[%emt 0:00:15]} Nb8 {[%emt 0:00:01]} 37. Bb6 {[%emt 0:00:29]} a4 {[%emt 0:00:
28]} 38. Nd4 {[%emt 0:01:06]} Na6 {[%emt 0:00:13]} 39. Bd7 {[%emt 0:00:42]} b3
{[%emt 0:00:14]} 40. axb3 {[%emt 0:00:34]} a3 {[%emt 0:00:01]} 41. Bxe8 {
[%emt 0:33:25]} Nb4 {[%emt 0:30:07]} 42. Ne2 {[%emt 0:01:09]} 1-0

[Event "IRI-ch Men Final 2015"]
[Site "Tehran"]
[Date "2016.01.27"]
[Round "10"]
[White "Mousavi, Seyed Khalil"]
[Black "Ghaem Maghami, Ehsan"]
[Result "1/2-1/2"]
[ECO "E42"]
[WhiteElo "2425"]
[BlackElo "2594"]
[PlyCount "75"]
[EventDate "2016.??.??"]
[EventType "tourn"]
[EventRounds "11"]
[EventCountry "IRI"]
[TimeControl "40/5400+30:1800+30"]

1. d4 {[%emt 0:00:00]} Nf6 {[%emt 0:09:05]} 2. c4 {[%emt 0:00:02]} e6 {[%emt 0:
00:23]} 3. Nc3 {[%emt 0:00:08]} Bb4 {[%emt 0:00:38]} 4. e3 {[%emt 0:00:08]} c5
{[%emt 0:01:19]} 5. Nge2 {[%emt 0:05:27]} cxd4 {[%emt 0:07:27]} 6. exd4 {
[%emt 0:00:57]} d5 {[%emt 0:00:27]} 7. c5 {[%emt 0:04:20]} Ne4 {[%emt 0:18:40]}
8. Qd3 {[%emt 0:13:41]} O-O {[%emt 0:17:00]} 9. a3 {[%emt 0:01:30]} Bxc3+ {
[%emt 0:04:06]} 10. Nxc3 {[%emt 0:02:13]} Nxc3 {[%emt 0:02:46]} 11. Qxc3 {
[%emt 0:03:21]} Nc6 {[%emt 0:00:55]} 12. Bb5 {[%emt 0:23:16]} e5 {[%emt 0:07:
16]} 13. Bxc6 {[%emt 0:02:42]} exd4 {[%emt 0:02:01]} 14. Qxd4 {[%emt 0:00:12]}
bxc6 {[%emt 0:00:15]} 15. O-O {[%emt 0:00:22]} Re8 {[%emt 0:00:41]} 16. Be3 {
[%emt 0:01:46]} Re4 {[%emt 0:03:51]} 17. Qc3 {[%emt 0:01:57]} Ba6 {[%emt 0:00:
29]} 18. Rfd1 {[%emt 0:01:21]} Qe7 {[%emt 0:02:17]} 19. Rd4 {[%emt 0:04:50]}
Re8 {[%emt 0:02:12]} 20. Rad1 {[%emt 0:02:10]} f6 {[%emt 0:04:58]} 21. h3 {
[%emt 0:04:27]} Qb7 {[%emt 0:06:42]} 22. Rxe4 {[%emt 0:01:39]} Rxe4 {[%emt 0:
00:10]} 23. Rd4 {[%emt 0:00:16]} Rxd4 {[%emt 0:00:55]} 24. Qxd4 {[%emt 0:03:03]
} Qd7 {[%emt 0:00:54]} 25. Qf4 {[%emt 0:02:02]} h6 {[%emt 0:00:54]} 26. Bd4 {
[%emt 0:02:49]} Kf7 {[%emt 0:01:07]} 27. a4 {[%emt 0:03:00]} Qe7 {[%emt 0:02:
21]} 28. Be3 {[%emt 0:02:37]} Qe5 {[%emt 0:01:29]} 29. Qg4 {[%emt 0:02:45]} Qe6
{[%emt 0:00:48]} 30. Qb4 {[%emt 0:00:35]} Qe4 {[%emt 0:01:29]} 31. Qa5 {
[%emt 0:03:20]} d4 {[%emt 0:00:25]} 32. Qxa6 {[%emt 0:02:59]} dxe3 {[%emt 0:00:
11]} 33. Qxa7+ {[%emt 0:00:31]} Kg6 {[%emt 0:00:17]} 34. fxe3 {[%emt 0:00:30]}
Qxe3+ {[%emt 0:00:11]} 35. Kh1 {[%emt 0:01:38]} Qe1+ {[%emt 0:00:05]} 36. Kh2 {
[%emt 0:00:04]} Qe5+ {[%emt 0:00:05]} 37. Kh1 {[%emt 0:00:06]} Qe1+ {[%emt 0:
00:09]} 38. Kh2 {[%emt 0:00:07]} 1/2-1/2

[Event "IRI-ch Men Final 2015"]
[Site "Tehran"]
[Date "2016.01.27"]
[Round "10"]
[White "Firouzja, Alireza"]
[Black "Maghsoodloo, Parham"]
[Result "1/2-1/2"]
[ECO "B43"]
[WhiteElo "2455"]
[BlackElo "2450"]
[PlyCount "120"]
[EventDate "2016.??.??"]
[EventType "tourn"]
[EventRounds "11"]
[EventCountry "IRI"]
[TimeControl "40/5400+30:1800+30"]

1. e4 {[%emt 0:00:00]} c5 {[%emt 0:00:45]} 2. Nf3 {[%emt 0:00:00]} e6 {[%emt 0:
01:29]} 3. d4 {[%emt 0:00:14]} cxd4 {[%emt 0:00:29]} 4. Nxd4 {[%emt 0:00:07]}
a6 {[%emt 0:00:47]} 5. Nc3 {[%emt 0:01:00]} Qc7 {[%emt 0:01:05]} 6. Qf3 {
[%emt 0:00:56]} Nf6 {[%emt 0:01:55]} 7. Bg5 {[%emt 0:01:01]} Qe5 {[%emt 0:00:
19]} 8. Be3 {[%emt 0:21:19]} Bb4 {[%emt 0:06:31]} 9. Bd3 {[%emt 0:01:20]} d5 {
[%emt 0:02:06]} 10. exd5 {[%emt 0:00:58]} Nxd5 {[%emt 0:00:18]} 11. O-O {
[%emt 0:01:08]} Nxe3 {[%emt 0:02:18]} 12. fxe3 {[%emt 0:00:21]} O-O {[%emt 0:
01:39]} 13. Nce2 {[%emt 0:13:05]} Nd7 {[%emt 0:05:47]} 14. c3 {[%emt 0:04:04]}
Be7 {[%emt 0:03:48]} 15. Ng3 {[%emt 0:04:43]} g6 {[%emt 0:03:37]} 16. a4 {
[%emt 0:06:27]} Qg7 {[%emt 0:03:48]} 17. Qe2 {[%emt 0:05:04]} Ne5 {[%emt 0:05:
20]} 18. Be4 {[%emt 0:00:17]} Qh6 {[%emt 0:03:19]} 19. Rfd1 {[%emt 0:12:18]}
Rb8 {[%emt 0:02:46]} 20. Nf1 {[%emt 0:03:11]} Bd8 {[%emt 0:09:30]} 21. Nf3 {
[%emt 0:05:06]} Bc7 {[%emt 0:00:47]} 22. Nxe5 {[%emt 0:00:11]} Bxe5 {[%emt 0:
00:07]} 23. a5 {[%emt 0:02:49]} Qh4 {[%emt 0:03:22]} 24. Bc2 {[%emt 0:06:32]}
Qe7 {[%emt 0:05:56]} 25. Nd2 {[%emt 0:03:03]} Bd7 {[%emt 0:01:14]} 26. Nf3 {
[%emt 0:00:16]} Bc7 {[%emt 0:00:53]} 27. e4 {[%emt 0:01:33]} Rfd8 {[%emt 0:02:
08]} 28. Kh1 {[%emt 0:03:59]} Qc5 {[%emt 0:03:11]} 29. Qe1 {[%emt 0:01:14]} Qh5
{[%emt 0:03:54]} 30. b4 {[%emt 0:00:43]} g5 {[%emt 0:06:00]} 31. Qg1 g4 {
[%emt 0:00:32]} 32. Nd4 {[%emt 0:01:52]} Rbc8 {[%emt 0:01:04]} 33. Bd3 {
[%emt 0:00:54]} Be5 {[%emt 0:00:19]} 34. Ra3 {[%emt 0:00:35]} Ba4 {[%emt 0:05:
38]} 35. Rxa4 {[%emt 0:00:26]} Rxc3 {[%emt 0:00:01]} 36. b5 {[%emt 0:00:38]}
axb5 {[%emt 0:09:20]} 37. Bxb5 {[%emt 0:00:24]} Bf4 {[%emt 0:02:49]} 38. Be2 {
[%emt 0:00:34]} Qc5 {[%emt 0:03:05]} 39. Nb3 {[%emt 0:00:31]} Rxd1 {[%emt 0:00:
43]} 40. Bxd1 {[%emt 0:00:27]} Qe5 {[%emt 0:00:50]} 41. Rb4 {[%emt 0:18:43]}
Re3 {[%emt 0:00:50]} 42. Nd4 {[%emt 0:05:13]} Rd3 {[%emt 0:11:51]} 43. Bxg4 {
[%emt 0:03:58]} Be3 {[%emt 0:00:40]} 44. Qf1 {[%emt 0:00:49]} Rxd4 {[%emt 0:02:
24]} 45. Rxb7 {[%emt 0:00:12]} f5 {[%emt 0:00:32]} 46. Bf3 {[%emt 0:03:27]}
Qxa5 {[%emt 0:10:02]} 47. Rb5 {[%emt 0:00:23]} Qc7 {[%emt 0:00:01]} 48. exf5 {
[%emt 0:00:28]} exf5 {[%emt 0:01:32]} 49. Rxf5 {[%emt 0:00:41]} Qc1 {[%emt 0:
00:02]} 50. Qxc1 {[%emt 0:00:47]} Bxc1 {[%emt 0:00:01]} 51. g3 {[%emt 0:00:08]}
Kg7 {[%emt 0:00:35]} 52. Rc5 {[%emt 0:00:10]} Be3 {[%emt 0:00:22]} 53. Rc7+ {
[%emt 0:00:07]} Kg8 {[%emt 0:00:33]} 54. h4 {[%emt 0:00:17]} Rd2 {[%emt 0:00:
37]} 55. Be4 {[%emt 0:01:02]} h6 {[%emt 0:00:23]} 56. Bg2 {[%emt 0:00:30]} Bf2
{[%emt 0:00:30]} 57. Rc3 {[%emt 0:00:16]} Bd4 {[%emt 0:01:33]} 58. Rc6 {
[%emt 0:00:07]} Kg7 {[%emt 0:00:01]} 59. Be4 {[%emt 0:00:44]} Be5 {[%emt 0:00:
01]} 60. Rg6+ {[%emt 0:00:18]} Kf7 {[%emt 0:00:17]} 1/2-1/2

[Event "IRI-ch Men Final 2015"]
[Site "Tehran"]
[Date "2016.01.28"]
[Round "11"]
[White "Bagheri, Maziar"]
[Black "Firouzja, Alireza"]
[Result "0-1"]
[ECO "E97"]
[WhiteElo "2262"]
[BlackElo "2455"]
[PlyCount "94"]
[EventDate "2016.??.??"]
[EventType "tourn"]
[EventRounds "11"]
[EventCountry "IRI"]
[TimeControl "40/5400+30:1800+30"]

1. d4 {[%emt 0:00:35]} Nf6 {[%emt 0:00:02]} 2. c4 {[%emt 0:02:14]} g6 {[%emt 0:
00:31]} 3. Nc3 {[%emt 0:00:14]} Bg7 {[%emt 0:00:39]} 4. e4 {[%emt 0:00:08]} d6
{[%emt 0:00:08]} 5. Nf3 {[%emt 0:00:22]} O-O {[%emt 0:00:20]} 6. Be2 {[%emt 0:
00:03]} e5 {[%emt 0:00:30]} 7. O-O {[%emt 0:01:17]} Nc6 {[%emt 0:00:17]} 8. d5
{[%emt 0:00:07]} Ne7 {[%emt 0:00:06]} 9. b4 {[%emt 0:00:04]} a5 {[%emt 0:02:37]
} 10. bxa5 {[%emt 0:01:08]} c5 {[%emt 0:00:19]} 11. Qc2 {[%emt 0:05:40]} Rxa5 {
[%emt 0:01:58]} 12. a4 {[%emt 0:00:38]} Ne8 {[%emt 0:10:10]} 13. Ra3 {[%emt 0:
03:23]} f5 {[%emt 0:07:04]} 14. Ng5 {[%emt 0:00:29]} h6 {[%emt 0:03:46]} 15.
Ne6 {[%emt 0:03:51]} Bxe6 {[%emt 0:00:06]} 16. dxe6 {[%emt 0:00:02]} Nc7 {
[%emt 0:10:16]} 17. Qb1 {[%emt 0:04:14]} Nxe6 {[%emt 0:05:39]} 18. Qxb7 {
[%emt 0:01:28]} Nd4 {[%emt 0:02:09]} 19. Bd1 {[%emt 0:01:21]} Nec6 {[%emt 0:03:
39]} 20. Qb1 {[%emt 0:02:15]} f4 {[%emt 0:06:34]} 21. Bd2 {[%emt 0:01:51]} f3 {
[%emt 0:05:30]} 22. Nb5 {[%emt 0:03:36]} fxg2 {[%emt 0:01:54]} 23. Kxg2 {
[%emt 0:00:22]} Ra6 {[%emt 0:02:16]} 24. a5 {[%emt 0:05:11]} Ne6 {[%emt 0:03:
29]} 25. Kh1 {[%emt 0:15:46]} Rf6 {[%emt 0:07:35]} 26. Nc3 {[%emt 0:04:03]}
Rxa5 {[%emt 0:03:02]} 27. Rxa5 {[%emt 0:02:13]} Qxa5 {[%emt 0:00:58]} 28. Qb5 {
[%emt 0:00:17]} Qa8 {[%emt 0:01:30]} 29. Nd5 {[%emt 0:05:11]} Rf7 {[%emt 0:00:
14]} 30. Bg4 {[%emt 0:00:04]} Ned4 {[%emt 0:01:41]} 31. Qb2 {[%emt 0:00:29]}
Rb7 {[%emt 0:02:28]} 32. Qc3 {[%emt 0:00:02]} Rb3 {[%emt 0:02:17]} 33. Qc1 {
[%emt 0:00:08]} Qa3 {[%emt 0:02:33]} 34. Bxh6 {[%emt 0:01:56]} Qxc1 {[%emt 0:
00:12]} 35. Bxc1 {[%emt 0:00:03]} Na5 {[%emt 0:01:47]} 36. f4 {[%emt 0:02:32]}
exf4 {[%emt 0:03:30]} 37. Bxf4 {[%emt 0:00:08]} Nxc4 {[%emt 0:00:36]} 38. Bd7 {
[%emt 0:09:29]} Be5 {[%emt 0:04:19]} 39. Bg5 {[%emt 0:13:31]} Rf3 {[%emt 0:01:
13]} 40. Rb1 {[%emt 0:05:12]} Rf2 {[%emt 0:01:28]} 41. Rb8+ {[%emt 0:31:45]}
Kg7 {[%emt 0:30:26]} 42. Bg4 {[%emt 0:02:08]} Rxh2+ {[%emt 0:00:00]} 43. Kg1 {
[%emt 0:00:00]} Rb2 {[%emt 0:00:00]} 44. Rc8 {[%emt 0:00:00]} Rb7 {[%emt 0:00:
00]} 45. Kg2 {[%emt 0:00:00]} Kf7 {[%emt 0:00:00]} 46. Kh3 {[%emt 0:00:00]} Ne6
{[%emt 0:00:00]} 47. Bc1 {[%emt 0:00:00]} Rb3+ {[%emt 0:00:00]} 0-1